[Event "*** SCC Grand Prix: Titled Tuesday Blitz"]
[Site "Chess.com"]
[Date "2020.06.02"]
[Round "1"]
[White "WPWPWP-2015"]
[Black "BakaPG"]
[Result "0-1"]
[WhiteElo "2337"]
[BlackElo "2682"]
[TimeControl "180+1"]
[EndTime "10:06:45 PDT"]
[Termination "BakaPG won by resignation"]

1. e4 {[%clk 0:02:54.2]} 1... e6 {[%clk 0:02:58.6]} 2. d4 {[%clk 0:02:53.7]}
2... d5 {[%clk 0:02:59.1]} 3. Nc3 {[%clk 0:02:54.6]} 3... Nf6 {[%clk 0:02:58.5]}
4. Bg5 {[%clk 0:02:50.4]} 4... Be7 {[%clk 0:02:57.8]} 5. Bd3 {[%clk 0:02:48.1]}
5... c5 {[%clk 0:02:52.9]} 6. Nf3 {[%clk 0:02:31.9]} 6... c4 {[%clk 0:02:47]} 7.
Be2 {[%clk 0:02:31.3]} 7... O-O {[%clk 0:02:45.7]} 8. e5 {[%clk 0:02:26.7]} 8...
Nfd7 {[%clk 0:02:44.7]} 9. h4 {[%clk 0:02:18.6]} 9... Nc6 {[%clk 0:02:43.1]} 10.
Qd2 {[%clk 0:02:17.3]} 10... f6 {[%clk 0:02:36.7]} 11. exf6 {[%clk 0:02:14.8]}
11... Nxf6 {[%clk 0:02:36.5]} 12. O-O-O {[%clk 0:02:11.9]} 12... Bb4 {[%clk
0:02:31.6]} 13. a3 {[%clk 0:02:07]} 13... Bxc3 {[%clk 0:02:26.2]} 14. Qxc3
{[%clk 0:02:06]} 14... b5 {[%clk 0:02:26]} 15. Ne5 {[%clk 0:02:02.4]} 15... Bd7
{[%clk 0:02:17.9]} 16. h5 {[%clk 0:01:52.8]} 16... h6 {[%clk 0:02:13.5]} 17.
Bxh6 {[%clk 0:01:25]} 17... Ne4 {[%clk 0:01:57.6]} 18. Nxc6 {[%clk 0:01:14.2]}
18... Nxc3 {[%clk 0:01:39.5]} 19. Nxd8 {[%clk 0:01:13.7]} 19... Nxe2+ {[%clk
0:01:39.1]} 20. Kd2 {[%clk 0:01:12.2]} 20... gxh6 {[%clk 0:01:32]} 21. Nb7
{[%clk 0:01:11.7]} 21... Rxf2 {[%clk 0:01:29.6]} 22. Ke3 {[%clk 0:01:09.6]}
22... Raf8 {[%clk 0:01:25.2]} 23. Rd2 {[%clk 0:01:02.5]} 23... Ng3 {[%clk
0:01:13.4]} 24. Rxf2 {[%clk 0:00:59.5]} 24... Nxh1 {[%clk 0:01:09.7]} 25. Rxf8+
{[%clk 0:00:50.1]} 25... Kxf8 {[%clk 0:01:09.4]} 26. Kf3 {[%clk 0:00:50.4]}
26... e5 {[%clk 0:01:00.8]} 27. dxe5 {[%clk 0:00:48.8]} 27... d4 {[%clk
0:00:58.5]} 28. Na5 {[%clk 0:00:37]} 28... Kf7 {[%clk 0:00:48.7]} 29. Ke4 {[%clk
0:00:29]} 29... d3 {[%clk 0:00:44.1]} 30. cxd3 {[%clk 0:00:28.7]} 30... Nf2+
{[%clk 0:00:42.8]} 31. Ke3 {[%clk 0:00:26.4]} 31... Nxd3 {[%clk 0:00:43.7]} 32.
b3 {[%clk 0:00:24.5]} 32... Nxe5 {[%clk 0:00:42.5]} 33. Kd4 {[%clk 0:00:24.2]}
33... Nc6+ {[%clk 0:00:40]} 34. Nxc6 {[%clk 0:00:23.3]} 34... Bxc6 {[%clk
0:00:40.2]} 35. bxc4 {[%clk 0:00:23.8]} 35... bxc4 {[%clk 0:00:38.6]} 36. Kxc4
{[%clk 0:00:22.5]} 36... Bxg2 {[%clk 0:00:37.6]} 37. Kb5 {[%clk 0:00:20.7]}
37... Bf1+ {[%clk 0:00:37.3]} 38. Kc6 {[%clk 0:00:20.5]} 38... Kf6 {[%clk
0:00:37.4]} 39. Kb7 {[%clk 0:00:20.5]} 39... a6 {[%clk 0:00:37.1]} 0-1

[Event "*** SCC Grand Prix: Titled Tuesday Blitz"]
[Site "Chess.com"]
[Date "2020.06.02"]
[Round "1"]
[White "bulletteemo"]
[Black "Sjakkerntobi"]
[Result "1-0"]
[WhiteElo "2610"]
[BlackElo "2276"]
[TimeControl "180+1"]
[EndTime "10:06:45 PDT"]
[Termination "bulletteemo won by resignation"]

1. e4 {[%clk 0:03:00.6]} 1... e6 {[%clk 0:02:53]} 2. d4 {[%clk 0:02:59.8]} 2...
d5 {[%clk 0:02:52.9]} 3. e5 {[%clk 0:02:59.8]} 3... c5 {[%clk 0:02:52.8]} 4. c3
{[%clk 0:02:59.7]} 4... Qb6 {[%clk 0:02:53.3]} 5. Nf3 {[%clk 0:02:59.2]} 5...
Nc6 {[%clk 0:02:52.6]} 6. a3 {[%clk 0:02:59.1]} 6... Nh6 {[%clk 0:02:40.4]} 7.
b4 {[%clk 0:02:58.3]} 7... cxd4 {[%clk 0:02:40.1]} 8. cxd4 {[%clk 0:02:59.2]}
8... Nf5 {[%clk 0:02:40.8]} 9. Be3 {[%clk 0:02:58.3]} 9... Bd7 {[%clk 0:02:33]}
10. Bd3 {[%clk 0:02:57.5]} 10... Be7 {[%clk 0:02:32.1]} 11. O-O {[%clk
0:02:57.1]} 11... O-O {[%clk 0:02:31.6]} 12. Nc3 {[%clk 0:02:57.5]} 12... Rfc8
{[%clk 0:02:28.9]} 13. Bxf5 {[%clk 0:02:56.8]} 13... exf5 {[%clk 0:02:28.8]} 14.
Nxd5 {[%clk 0:02:56.7]} 14... Qd8 {[%clk 0:02:29.4]} 15. Nxe7+ {[%clk
0:02:54.3]} 15... Nxe7 {[%clk 0:02:30.3]} 16. Bg5 {[%clk 0:02:48.8]} 16... Bc6
{[%clk 0:02:18.5]} 17. d5 {[%clk 0:02:44]} 17... Bb5 {[%clk 0:02:18.7]} 18. Re1
{[%clk 0:02:43.6]} 18... h6 {[%clk 0:02:18.6]} 19. Bxe7 {[%clk 0:02:38.6]} 19...
Qxe7 {[%clk 0:02:19.5]} 20. a4 {[%clk 0:02:36.5]} 20... Bc4 {[%clk 0:02:17.3]}
21. b5 {[%clk 0:02:35.5]} 21... Rd8 {[%clk 0:02:14.1]} 22. d6 {[%clk 0:02:35.3]}
22... Qd7 {[%clk 0:02:12.7]} 23. Qd4 {[%clk 0:02:33.8]} 23... Be6 {[%clk
0:02:12.1]} 24. Rac1 {[%clk 0:02:33.7]} 24... Rdc8 {[%clk 0:02:11.7]} 25. h3
{[%clk 0:02:33.6]} 25... b6 {[%clk 0:02:11.2]} 26. Qb4 {[%clk 0:02:30.2]} 26...
Rxc1 {[%clk 0:02:10]} 27. Rxc1 {[%clk 0:02:29.6]} 27... Rc8 {[%clk 0:02:10.9]}
28. Qa3 {[%clk 0:02:22.6]} 28... g5 {[%clk 0:02:05.2]} 29. Nd4 {[%clk
0:02:18.9]} 29... f4 {[%clk 0:01:58.2]} 30. Nc6 {[%clk 0:02:12.3]} 30... Kg7
{[%clk 0:01:50.1]} 31. a5 {[%clk 0:02:09.5]} 31... f3 {[%clk 0:01:49.1]} 32.
Qxf3 {[%clk 0:02:06.8]} 32... bxa5 {[%clk 0:01:47.6]} 33. Ra1 {[%clk 0:02:05.6]}
33... a6 {[%clk 0:01:45.3]} 34. Ne7 {[%clk 0:02:02.4]} 34... Rc5 {[%clk
0:01:37.4]} 35. bxa6 {[%clk 0:01:59.7]} 35... Rxe5 {[%clk 0:01:30.7]} 36. a7
{[%clk 0:01:58.8]} 36... Qxa7 {[%clk 0:01:26.9]} 37. Nc6 {[%clk 0:01:57.8]}
37... Qc5 {[%clk 0:01:25.8]} 38. Nxe5 {[%clk 0:01:55.5]} 38... Qxe5 {[%clk
0:01:26.7]} 39. Rd1 {[%clk 0:01:54.8]} 39... Bd7 {[%clk 0:01:22.1]} 40. Qb7
{[%clk 0:01:52.5]} 40... Qe6 {[%clk 0:01:10.7]} 41. Qd5 {[%clk 0:01:50.7]} 41...
Qe2 {[%clk 0:01:07.6]} 42. Rd2 {[%clk 0:01:47.1]} 42... Qe1+ {[%clk 0:01:07.3]}
43. Kh2 {[%clk 0:01:47.2]} 43... a4 {[%clk 0:01:07.4]} 44. Qd4+ {[%clk
0:01:43.9]} 44... Kg8 {[%clk 0:01:07.4]} 45. Rb2 {[%clk 0:01:42.3]} 45... Qe8
{[%clk 0:01:01.6]} 46. Rb7 {[%clk 0:01:39.6]} 46... a3 {[%clk 0:00:52.9]} 47.
Ra7 {[%clk 0:01:34.3]} 47... g4 {[%clk 0:00:31.8]} 48. hxg4 {[%clk 0:01:24.2]}
48... h5 {[%clk 0:00:30.8]} 49. gxh5 {[%clk 0:01:23.3]} 49... f6 {[%clk
0:00:26.2]} 50. Rxa3 {[%clk 0:01:15.4]} 50... Qxh5+ {[%clk 0:00:25.2]} 51. Kg1
{[%clk 0:01:15.6]} 51... Qg5 {[%clk 0:00:21.7]} 52. Rg3 {[%clk 0:01:13.2]} 1-0

[Event "*** SCC Grand Prix: Titled Tuesday Blitz"]
[Site "Chess.com"]
[Date "2020.06.02"]
[Round "1"]
[White "Semetey"]
[Black "Kapibara_Warri0r"]
[Result "1-0"]
[WhiteElo "2518"]
[BlackElo "2135"]
[TimeControl "180+1"]
[EndTime "10:06:45 PDT"]
[Termination "Semetey won on time"]

1. d4 {[%clk 0:02:59]} 1... Nf6 {[%clk 0:02:59.7]} 2. Nf3 {[%clk 0:02:58.3]}
2... g6 {[%clk 0:02:59.8]} 3. Bg5 {[%clk 0:02:57.5]} 3... Bg7 {[%clk 0:02:57.1]}
4. c3 {[%clk 0:02:57.1]} 4... h6 {[%clk 0:02:55.7]} 5. Bh4 {[%clk 0:02:56.5]}
5... d6 {[%clk 0:02:49]} 6. Nbd2 {[%clk 0:02:55.3]} 6... g5 {[%clk 0:02:47.6]}
7. Bg3 {[%clk 0:02:54.8]} 7... Nh5 {[%clk 0:02:45.8]} 8. e4 {[%clk 0:02:54.5]}
8... Nd7 {[%clk 0:02:36]} 9. Bc4 {[%clk 0:02:39.7]} 9... Nxg3 {[%clk 0:02:34.1]}
10. hxg3 {[%clk 0:02:38.9]} 10... c5 {[%clk 0:02:25.4]} 11. Qe2 {[%clk
0:02:23.5]} 11... O-O {[%clk 0:02:10.2]} 12. e5 {[%clk 0:02:01.5]} 12... Nb6
{[%clk 0:01:46.5]} 13. Bb3 {[%clk 0:01:51.5]} 13... Bf5 {[%clk 0:01:24.1]} 14.
dxc5 {[%clk 0:01:31.6]} 14... dxc5 {[%clk 0:01:20.1]} 15. Ne4 {[%clk 0:01:20.5]}
15... Rc8 {[%clk 0:01:03.1]} 16. Nfd2 {[%clk 0:01:06.7]} 16... Bg6 {[%clk
0:00:46]} 17. O-O-O {[%clk 0:01:00.6]} 17... Qc7 {[%clk 0:00:44.1]} 18. f4
{[%clk 0:01:00]} 18... c4 {[%clk 0:00:32.9]} 19. Bc2 {[%clk 0:00:59.9]} 19...
gxf4 {[%clk 0:00:29.2]} 20. gxf4 {[%clk 0:00:59.4]} 20... Qc6 {[%clk 0:00:14]}
21. g4 {[%clk 0:00:56.2]} 21... Bxe4 {[%clk 0:00:09.6]} 22. Bxe4 {[%clk
0:00:46.4]} 22... Qa4 {[%clk 0:00:09.3]} 23. Bc2 {[%clk 0:00:45.7]} 23... Qxa2
{[%clk 0:00:07.4]} 24. Qe4 {[%clk 0:00:45.5]} 24... Qa1+ {[%clk 0:00:06.8]} 25.
Nb1 {[%clk 0:00:43.3]} 25... f5 {[%clk 0:00:05.5]} 26. exf6 {[%clk 0:00:43.5]}
26... exf6 {[%clk 0:00:03.4]} 27. Qh7+ {[%clk 0:00:34.9]} 27... Kf7 {[%clk
0:00:03.7]} 28. Qg6+ {[%clk 0:00:34.5]} 28... Kg8 {[%clk 0:00:03.6]} 29. Rxh6
{[%clk 0:00:33.8]} 1-0

[Event "*** SCC Grand Prix: Titled Tuesday Blitz"]
[Site "Chess.com"]
[Date "2020.06.02"]
[Round "1"]
[White "JozefKneht"]
[Black "Bhagya_2312"]
[Result "0-1"]
[WhiteElo "2499"]
[BlackElo "2141"]
[TimeControl "180+1"]
[EndTime "10:06:45 PDT"]
[Termination "Bhagya_2312 won by checkmate"]

1. e4 {[%clk 0:02:59.6]} 1... c6 {[%clk 0:02:59.6]} 2. d4 {[%clk 0:02:58.1]}
2... d5 {[%clk 0:02:59.3]} 3. Nc3 {[%clk 0:02:58.3]} 3... dxe4 {[%clk
0:02:58.7]} 4. Nxe4 {[%clk 0:02:59.2]} 4... Nd7 {[%clk 0:02:57.3]} 5. Bc4 {[%clk
0:02:57.7]} 5... Ngf6 {[%clk 0:02:56.5]} 6. Ng5 {[%clk 0:02:58.1]} 6... e6
{[%clk 0:02:56.5]} 7. Qe2 {[%clk 0:02:57.3]} 7... Nb6 {[%clk 0:02:56.1]} 8. Bd3
{[%clk 0:02:57.1]} 8... Bd6 {[%clk 0:02:53.8]} 9. N1f3 {[%clk 0:02:55.4]} 9...
h6 {[%clk 0:02:53.5]} 10. Ne4 {[%clk 0:02:54.7]} 10... Nxe4 {[%clk 0:02:52.4]}
11. Qxe4 {[%clk 0:02:54.6]} 11... Qc7 {[%clk 0:02:45.1]} 12. O-O {[%clk
0:02:48.1]} 12... Nd5 {[%clk 0:02:39.5]} 13. c3 {[%clk 0:02:41.9]} 13... Nf6
{[%clk 0:02:35.6]} 14. Qe2 {[%clk 0:02:40.3]} 14... O-O {[%clk 0:02:23.2]} 15.
Re1 {[%clk 0:02:35.1]} 15... c5 {[%clk 0:02:19.9]} 16. dxc5 {[%clk 0:02:32]}
16... Bxc5 {[%clk 0:02:18.8]} 17. Ne5 {[%clk 0:02:29.4]} 17... Bd6 {[%clk
0:02:06.4]} 18. Bf4 {[%clk 0:02:26.9]} 18... b6 {[%clk 0:01:55.5]} 19. Rad1
{[%clk 0:02:24.8]} 19... Bb7 {[%clk 0:01:55.1]} 20. Bc2 {[%clk 0:02:01.5]} 20...
Rad8 {[%clk 0:01:53.8]} 21. Bg3 {[%clk 0:01:53]} 21... Bd5 {[%clk 0:01:38.7]}
22. c4 {[%clk 0:01:42.6]} 22... Bb7 {[%clk 0:01:28.8]} 23. b3 {[%clk 0:01:33.1]}
23... a5 {[%clk 0:01:17.7]} 24. Rd4 {[%clk 0:01:22.3]} 24... Qc5 {[%clk
0:01:13.3]} 25. Red1 {[%clk 0:01:15.2]} 25... Be7 {[%clk 0:01:12.4]} 26. Rxd8
{[%clk 0:01:04.3]} 26... Rxd8 {[%clk 0:01:11.6]} 27. Rxd8+ {[%clk 0:01:02.6]}
27... Bxd8 {[%clk 0:01:11.7]} 28. h3 {[%clk 0:01:01.9]} 28... Bc7 {[%clk
0:01:09]} 29. Kh2 {[%clk 0:00:53]} 29... Bd6 {[%clk 0:00:46.3]} 30. f4 {[%clk
0:00:37.5]} 30... Qd4 {[%clk 0:00:43.2]} 31. Bd3 {[%clk 0:00:30.2]} 31... Bc5
{[%clk 0:00:42.6]} 32. h4 {[%clk 0:00:21.2]} 32... Qg1+ {[%clk 0:00:38.8]} 33.
Kh3 {[%clk 0:00:21.4]} 33... Qh1+ {[%clk 0:00:38.7]} 34. Bh2 {[%clk 0:00:20.2]}
34... Bg1 {[%clk 0:00:35]} 35. g3 {[%clk 0:00:20]} 35... Bxh2 {[%clk 0:00:33.8]}
36. Qxh2 {[%clk 0:00:19.3]} 36... Bg2# {[%clk 0:00:33.3]} 0-1

[Event "*** SCC Grand Prix: Titled Tuesday Blitz"]
[Site "Chess.com"]
[Date "2020.06.02"]
[Round "1"]
[White "FMJoseHerrera"]
[Black "The_Machine04"]
[Result "1-0"]
[WhiteElo "2639"]
[BlackElo "2301"]
[TimeControl "180+1"]
[EndTime "10:06:48 PDT"]
[Termination "FMJoseHerrera won on time"]

1. Nf3 {[%clk 0:02:59.3]} 1... Nf6 {[%clk 0:02:58.9]} 2. g3 {[%clk 0:02:56.4]}
2... d5 {[%clk 0:02:58.1]} 3. Bg2 {[%clk 0:02:55.6]} 3... Nbd7 {[%clk
0:02:58.1]} 4. d3 {[%clk 0:02:55.1]} 4... e5 {[%clk 0:02:57.6]} 5. O-O {[%clk
0:02:55.2]} 5... Bc5 {[%clk 0:02:54]} 6. Nxe5 {[%clk 0:02:48.6]} 6... Nxe5
{[%clk 0:02:46.3]} 7. d4 {[%clk 0:02:48.7]} 7... Bd6 {[%clk 0:02:46.8]} 8. dxe5
{[%clk 0:02:47.2]} 8... Bxe5 {[%clk 0:02:47.7]} 9. Nc3 {[%clk 0:02:46.3]} 9...
c6 {[%clk 0:02:47.2]} 10. e4 {[%clk 0:02:43.2]} 10... Bxc3 {[%clk 0:02:33.3]}
11. bxc3 {[%clk 0:02:41.4]} 11... Nxe4 {[%clk 0:02:25.4]} 12. Ba3 {[%clk
0:02:32.4]} 12... Nd6 {[%clk 0:02:16.8]} 13. c4 {[%clk 0:02:25.3]} 13... Nxc4
{[%clk 0:01:43.9]} 14. Qd4 {[%clk 0:02:18.6]} 14... Nxa3 {[%clk 0:01:33.5]} 15.
Qxg7 {[%clk 0:02:15.5]} 15... Rf8 {[%clk 0:01:32.5]} 16. f4 {[%clk 0:01:46.7]}
16... Nxc2 {[%clk 0:01:04.2]} 17. Rac1 {[%clk 0:01:35.4]} 17... Qb6+ {[%clk
0:00:33.8]} 18. Kh1 {[%clk 0:01:34.5]} 18... Ne3 {[%clk 0:00:33.6]} 19. Qe5+
{[%clk 0:01:06.6]} 19... Kd8 {[%clk 0:00:14.5]} 20. Rfe1 {[%clk 0:01:00.5]}
20... d4 {[%clk 0:00:10.9]} 21. Qd6+ {[%clk 0:00:56.8]} 21... Ke8 {[%clk
0:00:10.1]} 22. Rc5 {[%clk 0:00:49.8]} 22... Be6 {[%clk 0:00:08.1]} 23. Rxc6
{[%clk 0:00:41.2]} 23... Qd8 {[%clk 0:00:03.9]} 24. Qc5 {[%clk 0:00:34]} 24...
Nxg2 {[%clk 0:00:03.1]} 25. Rcxe6+ {[%clk 0:00:19.9]} 1-0

[Event "*** SCC Grand Prix: Titled Tuesday Blitz"]
[Site "Chess.com"]
[Date "2020.06.02"]
[Round "1"]
[White "Konavets"]
[Black "GianmarcoVaR"]
[Result "1-0"]
[WhiteElo "2970"]
[BlackElo "2448"]
[TimeControl "180+1"]
[EndTime "10:06:49 PDT"]
[Termination "Konavets won on time"]

1. e4 {[%clk 0:01:58.8]} 1... c5 {[%clk 0:01:16.2]} 2. Nf3 {[%clk 0:01:42.3]}
2... d6 {[%clk 0:01:15.6]} 3. c3 {[%clk 0:01:42.5]} 3... Nf6 {[%clk 0:01:12.1]}
4. h3 {[%clk 0:01:43]} 4... g6 {[%clk 0:01:10.2]} 5. Bd3 {[%clk 0:01:43.2]} 5...
Bg7 {[%clk 0:01:09.6]} 6. O-O {[%clk 0:01:43.8]} 6... O-O {[%clk 0:01:08.7]} 7.
Bc2 {[%clk 0:01:44.4]} 7... c4 {[%clk 0:01:04.9]} 8. b3 {[%clk 0:01:43.1]} 8...
Qc7 {[%clk 0:00:59.2]} 9. bxc4 {[%clk 0:01:41.6]} 9... Qxc4 {[%clk 0:00:56.2]}
10. d4 {[%clk 0:01:42.3]} 10... Qc7 {[%clk 0:00:53.3]} 11. Re1 {[%clk
0:01:42.1]} 11... Nc6 {[%clk 0:00:51.4]} 12. Nbd2 {[%clk 0:01:41.4]} 12... Bd7
{[%clk 0:00:45.6]} 13. Rb1 {[%clk 0:01:37.2]} 13... Rac8 {[%clk 0:00:44.4]} 14.
Bd3 {[%clk 0:01:35.7]} 14... Rfd8 {[%clk 0:00:44.3]} 15. Ba3 {[%clk 0:01:31.7]}
15... Be8 {[%clk 0:00:44.2]} 16. Nf1 {[%clk 0:01:27.6]} 16... Na5 {[%clk
0:00:40.7]} 17. Bb4 {[%clk 0:01:27.6]} 17... Nc4 {[%clk 0:00:40.2]} 18. Ne3
{[%clk 0:01:23.4]} 18... Bb5 {[%clk 0:00:24.8]} 19. a4 {[%clk 0:01:01.4]} 19...
Nxe3 {[%clk 0:00:24.5]} 20. Rxe3 {[%clk 0:01:01.6]} 20... Bxd3 {[%clk
0:00:24.9]} 21. Qxd3 {[%clk 0:01:02.4]} 21... Qc4 {[%clk 0:00:14.9]} 22. Qd1
{[%clk 0:00:59.6]} 22... b6 {[%clk 0:00:08.5]} 23. a5 {[%clk 0:00:59.2]} 23...
bxa5 {[%clk 0:00:08.3]} 24. Bxa5 {[%clk 0:00:59]} 24... Rd7 {[%clk 0:00:06.1]}
25. Nd2 {[%clk 0:00:57.9]} 25... Qa6 {[%clk 0:00:05]} 26. Bb4 {[%clk 0:00:58.6]}
26... Qc6 {[%clk 0:00:03.7]} 27. Ra1 {[%clk 0:00:58.3]} 27... Rb7 {[%clk
0:00:03.8]} 28. Qe2 {[%clk 0:00:53.8]} 28... Bh6 {[%clk 0:00:03.9]} 29. d5
{[%clk 0:00:53.3]} 29... Qc7 {[%clk 0:00:03]} 30. Rd3 {[%clk 0:00:52.5]} 30...
Bg7 {[%clk 0:00:01.8]} 31. Nb3 {[%clk 0:00:49.5]} 31... Nd7 {[%clk 0:00:02.2]}
32. Nd4 {[%clk 0:00:48.2]} 32... Ne5 {[%clk 0:00:01.9]} 33. Rdd1 {[%clk
0:00:48.4]} 33... Rcb8 {[%clk 0:00:01.8]} 34. Ra6 {[%clk 0:00:47.6]} 34... Nd7
{[%clk 0:00:01.4]} 35. Nc6 {[%clk 0:00:47.3]} 35... Re8 {[%clk 0:00:01.4]} 36.
Ba5 {[%clk 0:00:47.5]} 36... Qc8 {[%clk 0:00:01.4]} 37. Nxa7 {[%clk 0:00:46]}
37... Qa8 {[%clk 0:00:01.2]} 38. Nc6 {[%clk 0:00:45.8]} 1-0

[Event "*** SCC Grand Prix: Titled Tuesday Blitz"]
[Site "Chess.com"]
[Date "2020.06.02"]
[Round "1"]
[White "ehrenfeld"]
[Black "Fandorine"]
[Result "0-1"]
[WhiteElo "2434"]
[BlackElo "2903"]
[TimeControl "180+1"]
[EndTime "10:06:52 PDT"]
[Termination "Fandorine won on time"]

1. e4 {[%clk 0:03:00.5]} 1... c5 {[%clk 0:02:59.4]} 2. d3 {[%clk 0:03:00.1]}
2... Nc6 {[%clk 0:02:57]} 3. f4 {[%clk 0:03:00.1]} 3... g6 {[%clk 0:02:56.9]} 4.
Nf3 {[%clk 0:03:00]} 4... Bg7 {[%clk 0:02:57.3]} 5. Be2 {[%clk 0:03:00.5]} 5...
d6 {[%clk 0:02:57.2]} 6. O-O {[%clk 0:03:01]} 6... Nf6 {[%clk 0:02:57.7]} 7. Qe1
{[%clk 0:03:00.4]} 7... O-O {[%clk 0:02:56.7]} 8. Qh4 {[%clk 0:02:59.4]} 8...
Nd4 {[%clk 0:02:35.8]} 9. Bd1 {[%clk 0:02:57.8]} 9... Nxf3+ {[%clk 0:02:31.1]}
10. Bxf3 {[%clk 0:02:56.7]} 10... Rb8 {[%clk 0:02:30.3]} 11. Nc3 {[%clk
0:02:42.2]} 11... Bd7 {[%clk 0:02:21.7]} 12. e5 {[%clk 0:02:10.4]} 12... Ne8
{[%clk 0:02:16]} 13. exd6 {[%clk 0:01:59.9]} 13... Nxd6 {[%clk 0:02:12.9]} 14.
Kh1 {[%clk 0:01:52.7]} 14... Nf5 {[%clk 0:02:09.9]} 15. Qf2 {[%clk 0:01:44.5]}
15... Nd4 {[%clk 0:02:08.2]} 16. Bd1 {[%clk 0:01:34.3]} 16... Bc6 {[%clk
0:02:07]} 17. Ne4 {[%clk 0:01:31.5]} 17... b6 {[%clk 0:02:06]} 18. c3 {[%clk
0:01:28.8]} 18... Nf5 {[%clk 0:02:06.1]} 19. Bc2 {[%clk 0:01:28.3]} 19... Qc7
{[%clk 0:02:02]} 20. Bd2 {[%clk 0:01:26]} 20... Rbd8 {[%clk 0:01:59.3]} 21. Rad1
{[%clk 0:01:22.6]} 21... Qb7 {[%clk 0:01:57.2]} 22. Qe2 {[%clk 0:01:10.9]} 22...
e6 {[%clk 0:01:52.2]} 23. Bc1 {[%clk 0:01:10.1]} 23... h5 {[%clk 0:01:49.3]} 24.
Ng5 {[%clk 0:01:06.7]} 24... Rfe8 {[%clk 0:01:49.1]} 25. Nf3 {[%clk 0:01:05.3]}
25... Bd5 {[%clk 0:01:29.2]} 26. Bb3 {[%clk 0:00:31]} 26... Bxb3 {[%clk
0:01:16.9]} 27. axb3 {[%clk 0:00:30.5]} 27... Qd5 {[%clk 0:01:17.8]} 28. c4
{[%clk 0:00:27.7]} 28... Qd6 {[%clk 0:01:13.6]} 29. Be3 {[%clk 0:00:21.6]} 29...
Nxe3 {[%clk 0:01:10.4]} 30. Qxe3 {[%clk 0:00:20.5]} 30... Bxb2 {[%clk 0:01:11]}
31. Ne5 {[%clk 0:00:18.6]} 31... Rf8 {[%clk 0:01:01.6]} 32. Qe4 {[%clk
0:00:17.1]} 32... Bxe5 {[%clk 0:01:00.2]} 33. fxe5 {[%clk 0:00:16.5]} 33... Qd4
{[%clk 0:01:00.8]} 34. Qe2 {[%clk 0:00:16.1]} 34... Qc3 {[%clk 0:00:56.1]} 35.
Rf3 {[%clk 0:00:12]} 35... Qxb3 {[%clk 0:00:47.9]} 36. Rdf1 {[%clk 0:00:11.5]}
36... Qc3 {[%clk 0:00:46.7]} 37. h3 {[%clk 0:00:09.4]} 37... Qd4 {[%clk
0:00:45.9]} 0-1

[Event "*** SCC Grand Prix: Titled Tuesday Blitz"]
[Site "Chess.com"]
[Date "2020.06.02"]
[Round "1"]
[White "Arek_pacitan"]
[Black "RianKapriaga"]
[Result "1-0"]
[WhiteElo "2545"]
[BlackElo "2195"]
[TimeControl "180+1"]
[EndTime "10:06:52 PDT"]
[Termination "Arek_pacitan won on time"]

1. Nf3 {[%clk 0:02:59.6]} 1... Nf6 {[%clk 0:02:53.6]} 2. d4 {[%clk 0:02:58.6]}
2... d5 {[%clk 0:02:52.9]} 3. c4 {[%clk 0:02:57.2]} 3... e6 {[%clk 0:02:51.6]}
4. Nc3 {[%clk 0:02:57.3]} 4... Be7 {[%clk 0:02:50.3]} 5. cxd5 {[%clk 0:02:52.5]}
5... exd5 {[%clk 0:02:49.1]} 6. Bg5 {[%clk 0:02:52.9]} 6... O-O {[%clk
0:02:47.7]} 7. e3 {[%clk 0:02:53.3]} 7... Nbd7 {[%clk 0:02:46.5]} 8. Bd3 {[%clk
0:02:51.9]} 8... c5 {[%clk 0:02:39]} 9. O-O {[%clk 0:02:51.7]} 9... c4 {[%clk
0:02:37.4]} 10. Bc2 {[%clk 0:02:50.6]} 10... a6 {[%clk 0:02:34.1]} 11. a4 {[%clk
0:02:46.8]} 11... b6 {[%clk 0:02:09]} 12. Ne5 {[%clk 0:02:42.2]} 12... Bb7
{[%clk 0:02:09.2]} 13. f4 {[%clk 0:02:41.3]} 13... h6 {[%clk 0:01:58.9]} 14. Bh4
{[%clk 0:02:32.6]} 14... Ne4 {[%clk 0:01:49.5]} 15. Bxe7 {[%clk 0:02:29.9]}
15... Qxe7 {[%clk 0:01:47.7]} 16. Bxe4 {[%clk 0:02:14.5]} 16... dxe4 {[%clk
0:01:45.4]} 17. Nxc4 {[%clk 0:02:03.3]} 17... Rac8 {[%clk 0:01:32.6]} 18. Nd2
{[%clk 0:01:52.5]} 18... Nf6 {[%clk 0:01:27.9]} 19. Qb3 {[%clk 0:01:46.8]} 19...
Ng4 {[%clk 0:01:14.1]} 20. Rae1 {[%clk 0:01:45.6]} 20... Qh4 {[%clk 0:00:25.7]}
21. h3 {[%clk 0:01:43.4]} 21... Nf6 {[%clk 0:00:24.9]} 22. Qxb6 {[%clk
0:01:38.8]} 22... Rxc3 {[%clk 0:00:21.8]} 23. bxc3 {[%clk 0:01:33.6]} 23... Bc8
{[%clk 0:00:22.1]} 24. f5 {[%clk 0:01:07.7]} 24... Qh5 {[%clk 0:00:17.5]} 25.
Qc5 {[%clk 0:01:02.2]} 25... Qg5 {[%clk 0:00:15.4]} 26. Qe5 {[%clk 0:01:00.6]}
26... Re8 {[%clk 0:00:14.5]} 27. Qf4 {[%clk 0:01:00.4]} 27... Qh5 {[%clk
0:00:13.4]} 28. c4 {[%clk 0:00:59.8]} 28... Rd8 {[%clk 0:00:10.3]} 29. d5 {[%clk
0:00:59.3]} 29... Re8 {[%clk 0:00:09.3]} 30. Nb3 {[%clk 0:00:58.7]} 30... Bd7
{[%clk 0:00:08.5]} 31. a5 {[%clk 0:00:57.3]} 31... Ba4 {[%clk 0:00:07.3]} 32.
Nc5 {[%clk 0:00:55.8]} 32... Bc2 {[%clk 0:00:07.6]} 33. Nxa6 {[%clk 0:00:55.6]}
33... Bd3 {[%clk 0:00:07.2]} 34. Rf2 {[%clk 0:00:54.4]} 34... Bxc4 {[%clk
0:00:07.3]} 35. Nc7 {[%clk 0:00:51.7]} 35... Rd8 {[%clk 0:00:06.9]} 36. a6
{[%clk 0:00:49.3]} 36... Bxd5 {[%clk 0:00:06.7]} 37. a7 {[%clk 0:00:47.3]} 37...
Bb7 {[%clk 0:00:05.5]} 38. Ra1 {[%clk 0:00:47.1]} 1-0